bitfinex/quotes_ETHUSD_20241203
["timestamp","ask_amount","ask_price","bid_price","bid_amount"]
[1733234235230,1.5122,3550.3,3549.9,2.81697]
[1733234235469,1.5122,3550.3,3549.5,2.81727]
[1733234235669,1.66342,3550.3,3549.1,2.8176]
[1733234235827,0.03500822,3550.2,3548.8,0.281793]
[1733234236165,0.55,3550.1,3548.9,1.49338969]
[1733234236369,0.03500822,3550.0,3548.3,1.43726038]
[1733234236537,0.55,3550.1,3548.3,1.43726038]
[1733234236538,0.55,3550.1,3549.5,2.81722]
[1733234236759,1.66342,3550.3,3549.7,2.81713]
[1733234236961,1.66342,3550.3,3545.0,1.83826482]
[1733234236962,1.66342,3550.3,3548.7,1.44937379]
[1733234237165,0.56230337,3550.1,3549.9,2.81693]
[1733234237571,0.56230337,3550.1,3548.8,0.42673838]
[1733234237572,0.56230337,3550.1,3548.9,1.49338969]
[1733234237774,0.56230337,3550.1,3549.9,2.81695]
[1733234237958,0.56230337,3550.1,3549.4,2.81737]
[1733234238267,0.56230337,3550.1,3548.4,1.47631929]
[1733234238467,0.56230337,3550.1,3549.9,2.81697]
[1733234238649,1.5122,3550.3,3549.9,2.81697]
[1733234238650,1.5122,3550.3,3550.2,2.81674]
[1733234239198,1.5122,3550.3,3548.6,1.45280375]
[1733234239601,1.5122,3550.3,3548.5,3.40324393]
[1733234239602,1.5122,3550.3,3549.4,4.24535173]
[1733234239750,1.5122,3550.3,3549.4,1.42798173]
[1733234239950,4.40676478,3550.6,3548.2,2.81831]
[1733234239951,4.40676478,3550.1,3548.3,1.43726038]
[1733234240285,0.5548549,3549.5,3548.3,1.43726038]
[1733234240463,4.40676478,3549.2,3548.3,1.43726038]
[1733234240664,0.55,3549.4,3547.3,1.44646324]
[1733234240897,4.40676478,3549.4,3547.5,1.45167151]
[1733234241201,4.40676478,3549.4,3547.1,0.04258658]
[1733234241202,3.50086022,3549.2,3547.7,1.42334065]
[1733234241395,3.50086022,3549.2,3547.6,3.24586315]
[1733234241396,3.50086022,3549.2,3548.4,2.81811]
[1733234241698,3.50086022,3549.2,3548.0,1.44289257]
[1733234241699,3.50086022,3549.2,3548.0,4.26135257]
[1733234241880,1e-08,3548.6,3547.8,1.49718427]
[1733234242066,1e-08,3548.6,3547.6,1.47286198]
[1733234242267,1e-08,3548.6,3547.1,1.53453551]
[1733234242457,1e-08,3548.6,3547.2,2.97257355]
[1733234242652,1e-08,3548.6,3547.2,0.15345355]
[1733234242966,1e-08,3548.6,3547.1,0.04258658]
[1733234242967,1.6293,3548.5,3547.1,0.04258658]
[1733234243298,1.6293,3548.5,3547.2,2.81912]
[1733234243464,1.6293,3548.5,3548.3,2.81823]
[1733234243669,1.661,3549.1,3548.5,2.81809]
[1733234244012,1.661,3549.1,3547.9,2.81856]
[1733234244291,0.56708308,3548.8,3548.0,0.281856]
[1733234244504,0.56708308,3548.8,3547.1,0.04258658]
[1733234244992,1.5139,3548.7,3547.7,2.81868]
[1733234245507,1.5139,3548.7,3547.3,2.81904]
[1733234245687,1.5139,3548.7,3547.1,2.86177658]
[1733234245890,0.55,3548.2,3547.1,1.53453551]
[1733234246048,1.5139,3547.9,3547.1,1.53453551]
[1733234246255,1.5139,3547.9,3547.2,4.21923528]
[1733234246478,1.5139,3547.9,3547.2,1.40018528]
[1733234246990,0.632,3548.7,3546.7,1.4965134]
[1733234247206,3.55,3548.3,3546.7,1.4965134]
[1733234247383,3.55,3548.3,3547.0,1.40134833]
[1733234247384,0.632,3548.0,3547.0,1.40134833]
[1733234247550,0.632,3548.0,3546.8,1.47397901]
[1733234247750,0.632,3548.0,3546.7,1.46096562]
[1733234248066,0.632,3548.0,3547.2,1.4659307]
[1733234248265,0.632,3548.0,3546.9,1.45383919]
[1733234248506,0.632,3547.9,3547.2,4.2850507]
[1733234248906,0.632,3547.9,3546.9,1.45383919]
[1733234249117,0.632,3547.9,3547.8,2.81864]
[1733234249118,0.27723454,3547.9,3547.8,2.81864]
[1733234249319,4.54e-06,3547.9,3547.8,2.81864]
[1733234249607,8.97,3550.8,3547.4,2.8189]
[1733234249608,2.74446476,3549.2,3549.1,2.81761]
[1733234250117,3.01891124,3549.2,3547.3,4.22827697]
[1733234250282,3.01891124,3549.2,3548.2,2.81825]
[1733234250617,3.01891124,3549.2,3547.5,1.44465843]
[1733234250618,3.01891124,3549.2,3547.9,2.81854]
[1733234250818,3.01891124,3549.2,3547.3,1.40923697]
[1733234250819,4.40676478,3548.9,3547.3,1.40923697]
[1733234251162,4.40676478,3548.9,3547.2,1.4659307]
[1733234251364,0.55,3548.7,3547.1,1.40117685]
[1733234251567,0.55,3548.7,3546.6,0.025]
[1733234251568,1.31767648,3548.8,3547.7,2.81871]
[1733234251823,3.0,3549.1,3546.6,0.05319384]
[1733234251824,3.0,3549.1,3547.2,1.4659307]
[1733234252041,2.53341124,3549.2,3548.4,2.81809]
[1733234252181,2.14601124,3549.2,3547.4,0.0281852]
[1733234252384,1.06081124,3549.2,3548.3,2.81824]
[1733234252623,1.06081124,3549.2,3548.0,2.81848]
[1733234252624,0.92156884,3549.2,3548.0,2.81848]
[1733234252822,0.92156884,3549.2,3547.9,2.81856]
[1733234253130,0.92156884,3549.2,3546.9,0.02818804]
[1733234253286,0.2,3550.4,3547.6,1.6385]
[1733234253287,0.56250718,3550.2,3547.6,1.6385]
[1733234253486,0.12691725,3550.2,3549.2,2.81748]
[1733234253707,0.12691725,3550.2,3548.7,2.81785]
[1733234253910,0.57799845,3549.3,3547.6,1.6385]
[1733234254218,0.57799845,3549.3,3548.9,2.81772]
[1733234254584,0.57799845,3549.3,3549.2,2.81753]
[1733234254829,0.12691725,3550.2,3547.9,4.40676478]
[1733234254993,0.56185198,3550.2,3548.1,1.6385]
[1733234255193,0.25165198,3550.2,3548.4,4.40676478]
[1733234255645,4.40676478,3550.8,3548.1,1.6385]
[1733234255787,0.826875,3550.1,3550.0,2.8169]
[1733234256122,0.533475,3550.1,3549.8,2.81705]
[1733234256328,0.29814028,3550.1,3549.1,2.81759]
[1733234256484,4.40676478,3551.3,3548.4,2.81817]
[1733234256485,4.00730506,3551.3,3548.4,2.81817]
[1733234256689,3.90366478,3550.8,3546.6,0.1]
[1733234256914,4.40676478,3549.4,3546.3,1.48589741]
[1733234257226,1.5542,3549.2,3547.4,2.81895]
[1733234257391,1.5542,3549.2,3548.3,2.81825]
[1733234257590,1.5542,3549.2,3546.3,1.48589741]
[1733234257789,0.6735,3549.2,3547.9,1.5793]
[1733234257983,0.57042084,3549.6,3546.7,4.40676478]
[1733234258184,0.57042084,3549.6,3547.7,2.81864]
[1733234258185,4.40676478,3548.9,3547.7,2.81864]
[1733234258410,4.40676478,3548.9,3546.7,1.44735025]
[1733234258621,4.40676478,3548.3,3546.8,2.81944]
[1733234258842,0.55591766,3548.1,3547.3,2.81896]
[1733234259123,0.55,3548.0,3547.1,2.81919]
[1733234259429,0.55,3548.0,3545.6,1.46125304]
[1733234259585,0.5512,3548.0,3547.5,2.81888]
[1733234259781,0.0012,3548.0,3546.3,1.48589741]
[1733234260036,0.0012,3548.0,3547.4,2.81895]
[1733234260323,0.0012,3548.0,3547.9,2.81856]
[1733234260528,2.6265,3550.0,3547.9,2.81856]
[1733234260688,1.136081,3550.1,3548.9,2.81776]
[1733234260889,1.136081,3550.1,3548.6,2.81793]
[1733234261108,1.136081,3550.1,3547.0,0.0281825]
[1733234261109,0.0843,3549.9,3547.0,0.0281825]
[1733234261428,1.136081,3550.1,3547.0,0.0281825]
[1733234261429,0.744381,3550.1,3549.6,2.81715]
[1733234261639,0.55332176,3549.1,3549.0,2.81769]
[1733234261925,0.744381,3550.1,3549.6,2.81719]
[1733234261926,0.57217025,3549.7,3549.6,2.81719]
[1733234262125,2.5e-07,3549.7,3549.6,2.81719]
[1733234262331,0.744381,3550.1,3547.5,1.6082]
[1733234262501,0.744381,3550.1,3547.7,8.45616]
[1733234262706,0.744381,3550.1,3547.7,2.81872]
[1733234263132,13.66572236,3550.0,3547.1,1.49851291]
[1733234263327,13.66572236,3550.0,3546.7,1.44735025]
[1733234263328,8.66572236,3549.8,3546.7,1.44735025]
[1733234263618,12.04273748,3549.7,3546.6,1.43828153]
[1733234263822,0.55,3549.5,3547.2,1.43876162]
[1733234264029,0.55,3549.5,3546.9,1.45728892]
[1733234264189,0.37701512,3549.4,3546.8,1.40832866]
[1733234264399,0.56378021,3549.0,3546.8,1.40832866]
[1733234264599,0.0012,3549.0,3546.8,1.40832866]
[1733234264914,0.0012,3549.0,3548.9,2.81777]
[1733234265113,0.0012,3549.0,3548.6,2.81798]
[1733234265316,0.0012,3549.0,3548.7,2.81785]
[1733234265516,0.0012,3549.0,3548.6,2.81793]
[1733234265856,0.744381,3550.1,3548.7,0.02817846]
[1733234266000,0.744381,3550.1,3548.8,0.28461285]
[1733234266200,0.744381,3550.1,3549.3,1.5157]
[1733234266401,0.744381,3550.1,3549.9,2.81697]
[1733234266601,0.744381,3550.1,3549.3,1.5157]
[1733234266847,5.0,3552.1,3548.8,0.28461285]
[1733234267063,9.16572236,3552.0,3549.2,2.81747]
[1733234267203,1.136053,3550.1,3549.0,2.81762]
[1733234267407,1.136053,3550.1,3548.9,0.19196129]
[1733234267408,1.136053,3550.1,3549.2,2.81753]
[1733234267618,1.136053,3550.1,3548.1,4.46314]
[1733234267849,1.136053,3550.1,3548.7,2.81785]
[1733234268010,0.55,3550.0,3548.3,2.81817]
[1733234268209,0.55,3549.8,3548.1,1.42858046]
[1733234268441,1.11823987,3549.8,3547.7,1.43206464]
[1733234268640,1.11823987,3549.8,3547.1,1.49851291]
[1733234268641,0.55,3549.6,3547.1,1.49851291]
[1733234269042,0.55,3549.8,3547.1,1.49851291]
[1733234269244,0.55,3549.6,3547.0,1.48563355]
[1733234269551,0.92701512,3549.6,3547.0,1.48563355]
[1733234269758,3.55,3549.4,3545.8,1.43518771]
[1733234269908,3.55,3549.4,3546.0,1.41804217]
[1733234270112,0.55,3549.2,3547.2,1.43876162]
[1733234270314,0.55,3549.2,3546.2,1.49809071]
[1733234270516,0.55,3549.2,3546.9,1.45728892]
[1733234270745,0.41691993,3549.6,3546.5,1.40284887]
[1733234270746,0.55,3549.5,3546.5,1.40284887]
[1733234271057,0.55,3549.5,3546.7,1.44735025]
[1733234271260,0.25868678,3548.9,3546.9,1.45728892]
[1733234271468,0.25868678,3548.9,3547.9,1.47258222]
[1733234271749,1.136053,3550.1,3546.8,0.42669503]
[1733234271750,1.136053,3550.1,3547.3,1.44131545]
[1733234271968,0.41691993,3550.0,3547.3,4.26033545]
[1733234272258,0.55368108,3549.4,3547.4,1.41956171]
[1733234272415,1.136053,3550.1,3548.4,1.4529008]
[1733234272757,0.810153,3550.1,3548.8,2.81777]
[1733234273072,0.810153,3550.1,3549.2,2.81747]
[1733234273213,0.810153,3550.1,3548.3,1.44179395]
[1733234273411,0.810153,3550.1,3548.4,1.48107619]
[1733234273616,0.810153,3550.1,3549.0,2.81761]
[1733234273813,0.810153,3550.1,3548.5,0.14810762]
[1733234274330,0.810153,3550.1,3548.6,4.266381]
[1733234274561,0.810153,3550.1,3548.6,1.448381]
[1733234274714,0.810153,3550.1,3548.9,2.81774]
[1733234274914,0.810153,3550.1,3548.9,0.42942994]
[1733234275166,0.810153,3550.1,3549.1,2.81754]
[1733234275326,0.810153,3550.1,3549.2,2.81749]
[1733234275766,0.810153,3550.1,3548.9,0.42942994]
[1733234275916,0.810153,3550.1,3549.0,1.66407201]
[1733234276117,0.810153,3550.1,3549.7,2.81712]
[1733234276313,0.810153,3550.1,3549.7,2.81713]
[1733234276515,0.810153,3550.1,3549.7,2.81706]
[1733234276716,0.810153,3550.1,3550.0,2.8169]
[1733234276954,0.55168949,3551.3,3550.6,2.81639]
[1733234277127,4.58593728,3552.3,3549.1,0.61469384]
[1733234277128,1.135954,3550.1,3549.8,1.6359]
[1733234277321,2.85641663,3552.9,3549.8,1.6359]
[1733234277322,1.13790689,3552.9,3550.8,2.81623]
[1733234277552,1.70686033,3553.1,3550.6,2.81636]
[1733234277553,0.55264895,3552.6,3550.6,2.81636]
[1733234277852,0.55264895,3552.6,3550.0,1.5903]
[1733234277853,0.55264895,3552.6,3550.7,0.281636]
[1733234278053,8.66572236,3552.5,3550.0,1.5903]
[1733234278262,0.41691993,3552.5,3550.3,2.81665]
[1733234278459,0.41691993,3552.5,3549.4,2.81737]
[1733234278624,2.50102881,3552.5,3549.3,1.5203]
[1733234278959,11.79201991,3552.7,3549.3,1.5203]
[1733234278960,0.55733337,3552.0,3549.5,2.81729]
[1733234279166,1.13790689,3552.7,3551.1,2.81596]
[1733234279316,1.13589,3552.8,3551.0,2.81603]
[1733234279660,1.55280993,3552.8,3550.0,1.6587]
[1733234279828,1.55280993,3552.8,3550.8,2.81623]
[1733234280037,0.83729774,3552.7,3551.4,2.81577]
[1733234280356,0.83729774,3552.7,3551.4,2.81575]
[1733234280569,0.83729774,3552.7,3550.8,0.281623]
[1733234280750,0.83729774,3552.7,3550.1,2.81682]
[1733234280951,0.41691993,3552.6,3550.0,1.6587]
[1733234281153,0.41691993,3552.6,3549.2,4.21786085]
[1733234281154,9.61111955,3552.5,3549.2,4.21786085]
[1733234281320,8.91883596,3552.4,3548.6,1.448381]
[1733234281521,0.55197168,3550.7,3548.7,1.47934132]
[1733234281721,0.55,3550.6,3548.9,1.41168542]
[1733234282149,3.0,3551.5,3548.9,1.41168542]
[1733234282350,0.55,3550.7,3547.8,1.4732598]
[1733234282529,6.3661,3551.1,3547.8,4.2918798]
[1733234282731,0.57550667,3550.0,3548.1,1.42858046]
[1733234282942,0.55,3549.9,3548.3,1.44179395]
[1733234283162,0.55,3549.9,3547.5,1.44752308]
[1733234283591,0.55,3549.9,3548.2,1.42675638]
[1733234283788,0.55,3549.9,3547.4,1.41956171]
[1733234284004,0.55,3549.5,3546.5,1.40284887]
[1733234284286,8.0,3549.7,3545.2,1.75261629]
[1733234284287,0.55,3548.9,3545.2,1.75261629]
[1733234284487,3.0,3548.3,3545.2,2.82065]
[1733234284656,0.57477297,3547.5,3545.1,2.82079]
[1733234284858,0.57477297,3547.5,3545.2,0.02820202]
[1733234285061,0.57477297,3547.5,3545.2,0.20628385]
[1733234285268,0.57477297,3547.5,3545.2,0.17808183]
[1733234285971,0.57477297,3547.5,3545.3,1.46992026]
[1733234286392,0.57477297,3547.5,3545.9,1.42700396]
[1733234286597,0.57477297,3547.5,3545.5,1.41016073]
[1733234286804,0.57477297,3547.5,3546.1,1.47059727]
[1733234287014,0.14687178,3548.2,3546.7,2.81951]
[1733234287301,0.14687178,3548.2,3545.8,1.40699461]
[1733234287459,0.14687178,3548.2,3546.2,1.49809071]
[1733234287658,0.14687178,3548.2,3547.5,2.81885]
[1733234287859,0.14687178,3548.2,3547.6,0.281885]
[1733234288158,7.34698111,3550.6,3547.1,2.84733709]
[1733234288520,0.57128974,3549.2,3547.2,2.81906]
[1733234288803,0.57128974,3549.2,3546.5,1.40284887]
[1733234289000,0.57128974,3549.2,3545.9,3.30361629]
[1733234289001,9.2370121,3549.2,3546.0,1.41804217]
[1733234289159,5.0,3549.0,3546.5,1.40284887]
[1733234289399,0.56976434,3548.3,3546.2,1.49809071]
[1733234289558,0.55,3548.2,3545.7,1.48704065]
[1733234289861,0.55,3548.2,3546.1,1.47059727]
[1733234290092,0.56976434,3548.3,3546.5,2.81967]
[1733234290295,0.10236434,3548.3,3546.8,2.81943]
[1733234290496,0.55812612,3548.3,3546.7,1.44735025]
[1733234290808,0.24552612,3548.3,3545.7,1.48704065]
[1733234291170,8.66572236,3548.5,3545.9,2.82014]
[1733234291397,13.66572236,3548.5,3546.1,1.47059727]
[1733234291576,8.66572236,3548.7,3546.3,1.48589741]
[1733234291759,8.66572236,3548.7,3544.7,2.93586086]
[1733234291760,8.26782236,3548.9,3546.9,2.81933]
[1733234292109,8.26782236,3548.9,3546.5,1.40284887]
[1733234292110,0.55,3548.9,3546.5,1.40284887]
[1733234292400,5.55,3548.9,3545.7,1.48704065]
[1733234292571,5.55,3548.9,3545.6,1.46125304]
[1733234292761,0.55,3548.7,3546.2,1.49809071]
[1733234293103,7.93782236,3548.2,3545.9,2.82014]
[1733234293351,0.55,3547.9,3545.8,1.40699461]
[1733234293502,0.55,3547.9,3546.0,1.41804217]
[1733234293845,3.01734,3549.5,3545.7,0.70704226]
[1733234293846,2.3728,3548.8,3546.8,1.40832866]
[1733234294140,6.70092236,3549.2,3546.2,2.81991]
[1733234294337,11.69218977,3549.7,3546.6,1.43828153]
[1733234294539,0.56553091,3548.4,3547.1,1.49851291]
[1733234295000,0.56553091,3548.4,3547.4,2.81893]
[1733234295201,11.69218977,3550.3,3547.5,2.81882]
[1733234295514,6.56892068,3550.1,3547.2,1.43876162]
[1733234295728,5.0,3550.3,3547.4,2.81896]
[1733234295729,6.56892068,3549.9,3547.4,2.81896]
[1733234296041,0.56688669,3548.6,3547.1,1.49851291]
[1733234296200,0.56688669,3548.6,3547.3,1.44131545]
[1733234296403,5.72130737,3549.6,3547.4,4.23852171]
[1733234296604,0.54,3550.8,3547.5,1.47571166]
[1733234296917,5.72130737,3551.2,3547.6,1.6661]
[1733234297100,5.45747126,3550.7,3547.6,3.15122279]
[1733234297325,0.57711155,3550.0,3547.7,4.56585692]
[1733234297525,0.57711155,3550.0,3547.8,0.0281802]
[1733234297725,0.36317396,3551.0,3549.4,2.8173]
[1733234297939,5.0,3552.2,3548.9,1.64]
[1733234298247,5.45747126,3552.3,3549.0,0.44579]
[1733234298545,5.0,3552.6,3549.4,2.81734]
[1733234298546,5.45747126,3552.1,3549.4,2.81734]
[1733234298702,0.57536033,3551.1,3549.5,2.81727]
[1733234299147,0.57536033,3551.1,3548.8,2.81778]
[1733234299315,5.45747126,3551.4,3548.4,2.81817]
[1733234299506,5.45747126,3552.0,3548.8,1.64]
[1733234299707,5.45747126,3552.7,3549.1,2.81757]
[1733234300037,5.45747126,3552.7,3548.9,0.445793]
[1733234300038,1.13589,3552.8,3549.2,0.02817081]
[1733234300247,1.49292822,3552.8,3551.0,2.81609]
[1733234300401,1.49292822,3552.8,3549.2,0.02817081]
[1733234300402,1.51321227,3552.8,3550.7,2.81634]
[1733234300604,1.70822837,3552.8,3550.8,0.445634]
[1733234300811,1.14702822,3552.8,3551.5,2.8157]
[1733234301007,1.14702822,3552.8,3551.6,2.81563]
[1733234301008,0.78999,3552.8,3551.6,2.81563]
[1733234301263,0.57412271,3552.4,3550.8,2.81626]
[1733234301415,0.57412271,3552.4,3551.8,2.81545]
[1733234301764,0.57412271,3552.4,3551.9,2.81539]
[1733234302047,0.57412271,3552.4,3551.9,0.281539]
[1733234302210,0.78999,3552.8,3551.9,0.281539]
[1733234302410,0.78999,3552.8,3550.6,1.64]
[1733234302411,0.78999,3552.8,3552.5,2.8149]
[1733234302852,0.57779069,3552.6,3552.4,2.81495]
[1733234303051,0.57779069,3552.6,3552.1,1.6654]
[1733234303052,0.78999,3552.8,3552.1,1.6654]
[1733234303262,0.78999,3552.8,3552.2,2.81512]
[1733234303411,0.56373952,3553.6,3551.5,1.6654]
[1733234303613,0.14570792,3555.1,3552.7,2.81474]
[1733234303815,0.50889256,3555.1,3552.6,2.81476]
[1733234304117,0.5705676,3554.3,3552.6,2.81483]
[1733234304315,0.5705676,3554.3,3551.8,2.81546]
[1733234304519,0.5705676,3554.3,3551.6,0.16654]
[1733234304752,0.3471627,3554.4,3551.7,0.183194]
[1733234305053,3.0,3554.7,3551.7,0.183194]
[1733234305352,0.5538642,3553.7,3551.7,0.183194]
[1733234305555,0.5538642,3553.7,3550.9,1.6654]
[1733234305737,0.55,3553.6,3551.1,2.81602]
[1733234305944,0.55,3553.6,3550.9,1.6654]
[1733234306152,0.55,3553.6,3549.9,1.49069502]
[1733234306313,3.55,3553.2,3549.8,1.42350866]
[1733234306516,0.55,3551.8,3550.0,1.47714948]
[1733234306826,0.55,3551.8,3550.2,1.44847296]
[1733234307028,0.55,3551.8,3549.9,1.49069502]
[1733234307211,0.5781662,3551.8,3548.4,1.41099228]
[1733234307416,0.5781662,3551.8,3548.0,3.96975328]
[1733234307417,0.55,3551.6,3548.7,2.81786]
[1733234307617,0.0281662,3551.5,3548.5,0.25846526]
[1733234307812,0.0281662,3551.5,3548.6,0.0281723]
[1733234308018,0.0281662,3551.5,3550.1,2.81679]
[1733234308296,0.0281662,3551.5,3548.6,1.5789]
[1733234308297,0.55,3550.9,3548.6,1.5789]
[1733234308489,0.0281662,3550.8,3548.7,0.18373653]
[1733234308715,0.55,3550.9,3548.8,0.02817229]
[1733234308928,0.55544274,3551.1,3548.9,2.81777]
[1733234309133,0.55544274,3551.1,3550.0,1.5481]
[1733234309421,0.36685244,3553.0,3550.0,1.5481]
[1733234309598,0.09221737,3552.9,3550.7,2.81632]
[1733234309805,0.09221737,3552.9,3550.1,2.97156]
[1733234309806,0.06405117,3552.8,3550.1,0.15481]
[1733234309982,0.0281662,3552.7,3550.3,2.8166]
[1733234310183,0.56074449,3551.9,3550.4,2.81654]
[1733234310462,0.56074449,3551.9,3551.5,2.81568]
[1733234310580,0.06405117,3552.8,3551.9,2.81538]
[1733234310784,0.06405117,3552.8,3552.0,2.8153]
[1733234310980,0.06405117,3552.8,3551.5,0.02815092]
[1733234311221,0.06405117,3552.8,3552.6,2.81482]
[1733234311384,0.06405117,3552.8,3551.6,2.81559]
[1733234311584,0.06405117,3552.8,3551.7,0.446199]
[1733234311784,0.06405117,3552.8,3550.5,0.281654]
[1733234312049,0.0281662,3552.7,3550.2,0.434987]
[1733234312254,0.06405117,3552.6,3550.2,0.434987]
[1733234312433,0.0281662,3552.5,3550.2,0.434987]
[1733234312757,0.55,3552.3,3550.3,2.81665]
[1733234312919,0.55,3552.3,3550.2,0.434987]
[1733234312920,0.0281662,3552.2,3550.4,0.3251637]
[1733234313264,0.55902564,3552.0,3550.2,0.434987]
[1733234313420,0.5781662,3551.9,3550.2,0.434987]
[1733234313624,0.55,3551.9,3550.8,2.81624]
[1733234313826,0.0281662,3551.8,3550.3,2.81664]
[1733234314005,0.0281662,3551.8,3550.2,0.434987]
[1733234314543,0.0281662,3552.0,3550.2,0.434987]
[1733234314752,0.55,3550.7,3550.2,0.434987]
[1733234315120,0.0281662,3550.6,3550.2,0.434987]
[1733234315957,0.0281662,3550.6,3548.2,1.42277729]
[1733234316267,0.55,3550.8,3549.0,2.81764]
[1733234316268,0.0281662,3550.7,3549.0,2.81764]
[1733234316432,0.0281662,3550.7,3548.4,1.41099228]
[1733234316630,0.0281662,3550.7,3548.8,1.41651546]
[1733234316950,0.0281662,3550.7,3549.2,2.81753]
[1733234317125,0.0281662,3550.7,3549.2,0.48744072]
[1733234317328,0.0281662,3550.7,3549.2,2.81753]
[1733234317554,0.55,3550.6,3549.1,0.577525]
[1733234317723,0.56286077,3550.7,3549.2,0.02817503]
[1733234317920,0.571095,3550.8,3550.3,2.81662]
[1733234318143,0.09221737,3552.4,3550.3,2.81662]
[1733234318474,0.09221737,3552.4,3549.2,2.84569403]
[1733234318475,0.56212758,3551.4,3549.2,2.84569403]
[1733234318767,0.56212758,3551.4,3549.5,0.02816403]
[1733234318921,0.06405117,3552.3,3550.3,1.563]
[1733234318922,0.09221737,3552.3,3550.3,1.563]
[1733234319121,0.06405117,3552.3,3550.4,0.0281578]
[1733234319331,0.06405117,3552.3,3550.9,2.81617]
[1733234319572,0.06405117,3552.3,3550.1,2.8168]
[1733234319878,5.0281662,3552.2,3549.1,0.577525]
[1733234320168,5.16687126,3551.9,3549.1,0.577525]
[1733234320381,3.0,3551.5,3549.1,0.577525]
[1733234320581,0.55,3550.5,3549.1,0.577525]
[1733234320877,0.55,3550.3,3549.1,0.577525]
[1733234321070,0.56413264,3549.7,3547.1,1.49863351]
[1733234321290,0.0281662,3549.6,3547.4,1.49243918]
[1733234321488,0.09221737,3549.6,3548.8,1.41651546]
[1733234321633,0.56413264,3549.7,3547.3,1.45357259]
[1733234321634,0.56413084,3549.7,3547.3,1.45357259]
[1733234321841,0.56413084,3549.7,3548.1,1.49944107]
[1733234322690,0.56413084,3549.7,3548.5,2.81806]
[1733234322838,0.56413084,3549.7,3548.2,2.8183]
[1733234323037,0.56413084,3549.7,3548.4,2.81816]
[1733234323490,0.55,3550.3,3548.0,0.564133]
[1733234323664,0.35554909,3550.9,3548.0,0.564133]
[1733234323981,0.55,3550.8,3548.4,2.81817]
[1733234324186,0.56554283,3549.8,3548.7,2.81785]
[1733234324366,0.56554283,3549.8,3548.0,0.564133]
[1733234324569,0.55,3550.9,3548.0,0.564133]
[1733234324770,0.54,3551.6,3549.0,2.81769]
[1733234324943,0.55177937,3550.5,3549.5,2.81728]
[1733234325143,0.56001489,3551.2,3549.6,0.02817365]
[1733234325381,0.36103865,3552.8,3550.5,2.8165]
[1733234325641,5.16687126,3553.7,3549.2,0.55]
[1733234325897,0.36314779,3553.7,3551.8,2.81546]
[1733234326041,0.56520719,3552.7,3551.4,2.81575]
[1733234326241,0.56520719,3552.7,3550.3,1.6573]
[1733234326585,0.56520719,3552.7,3550.6,2.81637]
[1733234326753,0.56520719,3552.7,3550.3,1.6573]
[1733234326936,0.56520719,3552.7,3550.5,2.8165]
[1733234327164,0.38490399,3554.1,3551.7,2.81554]
[1733234327364,0.38490399,3554.1,3551.9,2.81538]
[1733234327582,0.38490399,3554.1,3550.4,0.16573]
[1733234327583,0.38490399,3554.2,3550.5,0.02815488]
[1733234327783,0.38490399,3554.2,3551.6,2.81558]
[1733234327784,0.57830821,3553.2,3551.6,2.81558]
[1733234328003,0.57830821,3553.2,3552.1,2.81521]
[1733234328330,0.38490399,3554.2,3552.3,2.81507]
[1733234328522,5.0,3554.9,3551.4,0.02815074]
[1733234328826,0.57153182,3553.7,3551.7,1.6002]
[1733234328985,0.57153182,3553.7,3552.0,2.81531]
[1733234329170,0.57153182,3553.7,3552.0,2.81526]
[1733234329366,0.57153182,3553.7,3551.8,0.16002]
[1733234329571,0.75,3555.3,3551.9,0.02814811]
[1733234329803,0.75,3555.3,3552.2,2.81515]
[1733234329984,0.75,3555.3,3551.8,0.16002]
[1733234329985,0.5554379,3554.9,3553.2,1.6002]
[1733234330203,0.75,3555.3,3554.2,2.81355]
[1733234330371,0.75,3555.3,3552.3,0.281515]
[1733234330372,10.16687126,3553.3,3550.9,1.17366031]
[1733234330566,10.16687126,3553.3,3550.0,3.49627563]
[1733234330567,5.16687126,3553.0,3549.2,2.81753]
[1733234330768,5.41990399,3552.9,3548.8,0.02816711]
[1733234331003,5.41990399,3552.9,3548.5,1.6002]
[1733234331004,0.55080737,3551.6,3548.5,1.6002]
[1733234331328,0.55,3551.5,3549.8,0.89]
[1733234331487,0.96990399,3551.5,3549.8,0.89]
[1733234331826,0.55,3551.5,3549.8,0.89]
[1733234331985,3.0,3551.9,3549.8,0.89]
[1733234331986,0.96990399,3551.8,3549.8,0.89]
[1733234332168,0.55,3551.6,3549.8,0.89]
[1733234332373,0.96990399,3551.8,3550.1,0.89]
[1733234332567,0.55,3551.0,3550.1,0.89]
[1733234333636,0.57565082,3551.1,3550.1,0.89]
[1733234333787,0.35754622,3552.8,3550.4,2.81657]
[1733234333986,0.55888594,3551.9,3550.4,2.81657]
[1733234334186,5.41990399,3553.1,3550.4,0.370657]
[1733234334736,5.41990399,3553.1,3550.1,0.89]
[1733234334737,0.56328884,3552.2,3550.1,0.89]
[1733234335237,0.41990399,3552.2,3550.1,0.89]
[1733234335448,0.57666688,3551.6,3550.1,0.89]
[1733234335625,0.41990399,3552.7,3550.1,0.89]
[1733234335787,5.58677525,3552.7,3550.1,0.89]
[1733234335996,5.58677525,3552.7,3550.2,3.187398]
[1733234336305,0.55809568,3551.9,3550.2,0.370688]
[1733234336506,0.55809568,3551.9,3550.1,0.89]
[1733234336707,0.55,3551.8,3550.1,0.89]
[1733234337017,5.0,3553.2,3550.1,0.89]
[1733234337018,0.14545181,3552.1,3550.1,0.89]
[1733234337497,0.56853845,3552.3,3550.1,0.89]
[1733234338005,0.71398464,3552.3,3550.1,0.89]
[1733234338419,0.55,3552.1,3550.1,0.89]
[1733234338619,0.55,3552.2,3550.1,0.89]
[1733234339022,0.55,3551.5,3550.1,0.89]
[1733234340957,0.5619816,3551.6,3550.1,0.89]
[1733234341262,0.14544619,3552.3,3550.7,2.81631]
[1733234341406,0.14544619,3552.3,3550.1,0.89]
[1733234341608,0.56017604,3552.6,3550.1,0.89]
[1733234341855,0.41990399,3552.3,3550.1,0.89]
[1733234342061,5.16687126,3552.2,3550.1,0.89]